bitfinex/quotes_SOLUSD_20250520
["timestamp","ask_amount","ask_price","bid_price","bid_amount"]
[1747774400705,5.93436591,168.51,168.47,16.90306462]
[1747774401025,5.93436591,168.51,168.5,16.90306462]
[1747774401415,5.93436591,168.51,168.49,16.90306462]
[1747774401621,5.93436591,168.51,168.47,16.90306462]
[1747774402325,20.77028069,168.51,168.47,16.90306462]
[1747774403130,37.67334531,168.51,168.47,16.90306462]
[1747774403323,20.77028069,168.51,168.47,16.90306462]
[1747774404207,37.67334531,168.51,168.47,16.90306462]
[1747774404417,37.67334531,168.51,168.44,16.90306462]
[1747774404418,16.90306462,168.49,168.44,16.90306462]
[1747774404628,16.90306462,168.48,168.43,16.90306462]
[1747774405121,5.93577491,168.47,168.43,16.90306462]
[1747774405324,20.77521219,168.47,168.43,16.90306462]
[1747774408718,5.93577491,168.47,168.44,16.90306462]
[1747774408923,5.93577491,168.47,168.45,16.90306462]
[1747774409124,5.9354226,168.48,168.45,16.90306462]
[1747774412744,5.93514127,168.49,168.42,30.56]
[1747774412912,5.93514127,168.49,168.47,16.90306462]
[1747774413816,20.77043024,168.51,168.47,16.90306462]
[1747774414012,35.55271348,168.5,168.46,16.90306462]
[1747774414217,35.55271348,168.5,168.42,30.56]
[1747774414218,35.55271348,168.5,168.45,16.90306462]
[1747774415848,37.67581077,168.49,168.44,16.90306462]
[1747774416223,16.90306462,168.48,168.43,16.90306462]
[1747774417027,16.90306462,168.46,168.42,30.56]
[1747774417225,16.90306462,168.46,168.41,16.90306462]
[1747774418039,5.93647966,168.45,168.42,20.2690533]
[1747774418365,20.77767882,168.45,168.42,3.36598868]
[1747774418958,20.77767882,168.45,168.42,16.90306462]
[1747774419514,16.90306462,168.44,168.37,31.9837]
[1747774419715,16.90306462,168.44,168.4,16.90306462]
[1747774419921,37.68074344,168.45,168.41,16.90306462]
[1747774420337,16.90306462,168.44,168.39,16.90306462]
[1747774420543,16.90306462,168.42,168.37,30.4]
[1747774420737,50.46007715,168.45,168.37,47.30306462]
[1747774420932,5.93647966,168.45,168.43,16.90306462]
[1747774421927,14.84054358,168.46,168.43,16.90306462]
[1747774422643,5.93577491,168.47,168.43,16.90306462]
[1747774422853,5.93577491,168.47,168.44,16.90306462]
[1747774423327,5.93577491,168.47,168.45,16.90306462]
[1747774424651,16.90306462,168.46,168.41,16.90306462]
[1747774424959,16.90306462,168.46,168.4,16.90306462]
[1747774425134,5.93577491,168.47,168.43,16.90306462]
[1747774425331,5.93577491,168.47,168.45,16.90306462]
[1747774426947,20.7739791,168.48,168.44,16.90306462]
[1747774427129,20.7739791,168.48,168.43,16.90306462]
[1747774428345,20.7739791,168.48,168.44,16.90306462]
[1747774430055,20.7739791,168.48,168.43,16.90306462]
[1747774430351,20.7739791,168.48,168.42,16.90306462]
[1747774430352,18.64964886,168.47,168.42,16.90306462]
[1747774430934,35.55271348,168.47,168.42,16.90306462]
[1747774431234,37.67951006,168.46,168.41,16.90306462]
[1747774432655,20.77644544,168.46,168.43,16.90306462]
[1747774433850,20.77644544,168.46,168.42,16.90306462]
[1747774435160,14.84031817,168.46,168.42,16.90306462]
[1747774436962,31.74338279,168.46,168.37,56.42]
[1747774437256,37.68321066,168.43,168.35,6.1233]
[1747774437443,16.90306462,168.4,168.36,0.12]
[1747774437954,16.90306462,168.4,168.37,3.36480196]
[1747774438345,18.64964886,168.4,168.37,3.36480196]
[1747774438655,35.55271348,168.4,168.37,3.36480196]
[1747774439155,20.78508224,168.39,168.32,30.42]
[1747774439942,37.70226513,168.39,168.32,30.42]
[1747774440559,20.78508224,168.39,168.33,3.36112923]
[1747774440740,37.70226513,168.39,168.33,3.36112923]
[1747774441138,37.70226513,168.39,168.34,3.36112923]
[1747774441486,16.91718289,168.38,168.34,3.36112923]
[1747774442733,16.91718289,168.37,168.31,6.6003]
[1747774443146,26.7,168.37,168.3,1.6202]
[1747774443352,16.91718289,168.34,168.27,38.3405]
[1747774443548,37.70720368,168.35,168.27,38.3405]
[1747774443865,5.94000594,168.35,168.28,3.3578953]
[1747774444158,5.93973153,168.36,168.3,26.0]
[1747774444361,32.63938245,168.37,168.31,26.0]
[1747774444538,5.93857356,168.4,168.33,26.0]
[1747774444737,5.93857356,168.4,168.34,1.5091]
[1747774444942,5.93718458,168.43,168.35,6.4208]
[1747774445248,5.9368321,168.44,168.36,4.15775718]
[1747774446360,5.9368321,168.44,168.37,3.3578953]
[1747774447475,5.9368321,168.44,168.36,4.15775718]
[1747774449280,5.9368321,168.44,168.36,30.15775718]
[1747774449573,5.9368321,168.44,168.37,3.35237811]
[1747774450373,5.9368321,168.44,168.38,4.15726333]
[1747774450959,5.9368321,168.44,168.39,3.35237811]
[1747774451460,5.93612727,168.46,168.39,3.35237811]
[1747774451656,32.98210187,168.46,168.39,3.35237811]
[1747774451857,32.98210187,168.46,168.36,30.1575878]
[1747774452777,47.82242004,168.46,168.36,30.1575878]
[1747774453282,45.69562346,168.45,168.37,3.352603]
[1747774453463,27.0459746,168.41,168.37,3.352603]
[1747774453775,27.0459746,168.42,168.37,3.352603]
[1747774454154,27.0459746,168.4,168.33,26.0]
[1747774454379,27.0459746,168.39,168.33,26.0]
[1747774454758,27.0459746,168.39,168.32,30.4]
[1747774454957,45.34964886,168.43,168.32,56.4]
[1747774455167,27.0459746,168.4,168.32,56.4]
[1747774455364,20.78508224,168.39,168.33,3.35555642]
[1747774456870,20.78508224,168.39,168.34,3.35555642]
[1747774457583,14.84648732,168.39,168.34,3.35555642]
[1747774458084,14.84648732,168.39,168.33,3.35555642]
[1747774458991,5.93824228,168.4,168.35,26.0]
[1747774459660,14.84425655,168.42,168.35,26.0]
[1747774460191,14.84425655,168.42,168.36,3.35699491]
[1747774462085,14.84425655,168.42,168.35,26.0]
[1747774463299,41.89023115,168.42,168.35,26.0]
[1747774464083,47.82776825,168.42,168.35,26.0]
[1747774464282,45.69562346,168.41,168.35,26.0]
[1747774464598,47.82776825,168.42,168.35,26.0]
[1747774465195,26.7,168.41,168.35,26.0]
[1747774466102,5.93824228,168.4,168.35,26.0]
[1747774466311,5.93824228,168.4,168.36,3.35915761]
[1747774467301,5.93824228,168.4,168.35,26.0]
[1747774468268,5.9375371,168.42,168.35,30.15796783]
[1747774469015,5.9375371,168.42,168.36,3.36057431]
[1747774470206,5.9375371,168.42,168.37,3.36057431]
[1747774471101,32.6368321,168.44,168.37,1.6053]
[1747774471530,5.93577491,168.47,168.39,26.0]
[1747774471795,32.63577491,168.47,168.39,26.0]
[1747774472108,5.93577491,168.47,168.39,30.15695201]
[1747774472287,32.63577491,168.47,168.39,30.15695201]
[1747774472490,5.93577491,168.47,168.41,26.0]
[1747774472690,32.63577491,168.47,168.41,26.0]
[1747774473204,5.93577491,168.47,168.41,26.0]
[1747774475601,20.77437259,168.48,168.41,26.0]
[1747774476114,20.77437259,168.48,168.42,3.36071211]
[1747774477096,20.77437259,168.48,168.41,26.0]
[1747774477412,5.9354226,168.48,168.42,26.0]
[1747774477593,33.48607568,168.51,168.43,26.0]
[1747774477594,14.83642682,168.51,168.43,26.0]
[1747774478004,14.83642682,168.51,168.44,3.35887593]
[1747774478692,20.77079273,168.51,168.44,3.35887593]
[1747774479098,20.77079273,168.51,168.43,30.15591059]
[1747774479612,20.77079273,168.51,168.43,26.0]
[1747774480113,37.68203425,168.51,168.41,26.0]
[1747774480413,45.34964886,168.5,168.41,26.0]
[1747774480616,45.34964886,168.5,168.42,3.35578897]
[1747774480925,20.77274615,168.49,168.42,3.35578897]
[1747774481297,20.77274615,168.49,168.43,3.35578897]
[1747774482328,37.68398767,168.49,168.43,3.35578897]
[1747774482527,18.64964886,168.47,168.43,3.35578897]
[1747774482821,35.56089038,168.44,168.35,8.45958665]
[1747774483005,16.91124152,168.42,168.38,26.0]
[1747774483211,16.91124152,168.41,168.37,0.12]
[1747774483590,16.91124152,168.41,168.38,26.0]
[1747774484105,5.93824228,168.4,168.39,0.12]
[1747774485522,5.93824228,168.4,168.37,26.0]
[1747774485918,20.78384798,168.4,168.37,26.0]
[1747774486119,14.8456057,168.4,168.37,26.0]
[1747774487603,20.78384798,168.4,168.37,26.0]
[1747774488004,5.93824228,168.4,168.37,26.0]
[1747774489228,5.93824228,168.4,168.34,26.0]
[1747774489732,20.78312869,168.41,168.35,3.36610924]
[1747774490038,20.78312869,168.41,168.36,26.0]
[1747774490845,37.69437021,168.41,168.32,26.0]
[1747774491014,37.69437021,168.41,168.33,0.12]
[1747774491739,20.78312869,168.41,168.33,0.12]
[1747774491925,5.93788967,168.41,168.34,27.5775]
[1747774493435,5.93788967,168.41,168.35,3.36684586]
[1747774494527,5.93788967,168.41,168.36,3.36684586]
[1747774495323,20.78261385,168.41,168.36,3.36684586]
[1747774495649,20.78261385,168.41,168.34,27.5775]
[1747774496440,20.78261385,168.41,168.35,3.36613841]
[1747774496626,5.93788967,168.41,168.35,3.36613841]
[1747774497040,5.9368321,168.44,168.38,26.0]
[1747774497225,32.6368321,168.44,168.38,26.0]
[1747774497411,5.9368321,168.44,168.38,26.0]
[1747774498235,5.9368321,168.44,168.39,3.36613841]
[1747774499410,5.9368321,168.44,168.38,30.15722754]
[1747774499916,32.63612727,168.46,168.38,30.15722754]
[1747774500812,47.47644544,168.46,168.38,26.0]
[1747774501310,5.93612727,168.46,168.38,30.15725202]
[1747774501506,5.93577491,168.47,168.38,30.15725202]
[1747774501733,5.93507033,168.49,168.42,26.0]
[1747774501942,5.93507033,168.49,168.42,56.36]
[1747774502527,5.93507033,168.49,168.43,3.3637827]
[1747774502727,39.41992955,168.51,168.43,3.3637827]
[1747774503635,39.41992955,168.51,168.42,56.36]
[1747774506036,39.41992955,168.51,168.43,3.36384307]
[1747774507054,39.41992955,168.51,168.44,3.36384307]
[1747774507845,20.77028069,168.51,168.44,3.36384307]
[1747774508547,20.77028069,168.51,168.43,4.15600275]
[1747774509726,14.83591478,168.51,168.43,4.15600275]
[1747774511253,20.77028069,168.51,168.43,4.15600275]
[1747774511558,20.77028069,168.51,168.44,0.12]
[1747774512544,20.77028069,168.51,168.45,3.3592845]
[1747774512953,5.93436591,168.51,168.45,3.3592845]
[1747774513145,5.93436591,168.51,168.46,26.0]
[1747774513351,5.93436591,168.51,168.47,26.0]
[1747774515341,20.76924166,168.52,168.47,26.0]
[1747774517074,16.91124152,168.48,168.44,0.12]
[1747774517278,26.7,168.47,168.44,0.12]
[1747774517572,5.93612727,168.46,168.45,26.0]
[1747774518575,20.77644544,168.46,168.42,30.36]
[1747774518780,20.77644544,168.46,168.42,26.0]
[1747774519087,20.77644544,168.46,168.39,6.4164]
[1747774519238,20.77644544,168.46,168.4,0.12]
[1747774519438,37.68768696,168.46,168.4,26.12]
[1747774519677,37.68768696,168.46,168.4,0.12]
[1747774519873,37.68768696,168.46,168.4,26.12]
[1747774520081,20.77644544,168.46,168.4,26.12]
[1747774520241,5.93612727,168.46,168.4,26.12]
[1747774520488,5.9354226,168.48,168.4,30.27667885]
[1747774520719,5.9354226,168.48,168.41,3.36487616]
[1747774520902,20.7739791,168.48,168.42,26.0]
[1747774521102,47.4739791,168.48,168.42,26.0]
[1747774521515,47.4739791,168.48,168.41,3.36487616]
[1747774521684,47.4739791,168.48,168.4,30.15663187]
[1747774522089,47.4739791,168.48,168.4,26.0]
[1747774523201,47.4739791,168.48,168.4,30.15666107]
[1747774523828,47.4739791,168.48,168.41,3.36164466]
[1747774524218,5.9354226,168.48,168.44,26.0]
[1747774524833,5.9354226,168.48,168.42,30.32]
[1747774524834,5.9354226,168.48,168.43,26.0]
[1747774525220,20.7739791,168.48,168.43,26.0]
[1747774525820,14.8385565,168.48,168.43,26.0]
[1747774526334,14.8385565,168.48,168.37,84.0127]
[1747774526335,18.64964886,168.46,168.33,8.45958665]
[1747774526538,16.91124152,168.42,168.31,26.0]
[1747774526843,33.8818,168.47,168.32,26.0]
[1747774527037,33.8818,168.47,168.31,26.0]
[1747774527038,62.26089038,168.46,168.36,26.0]
[1747774527239,16.91124152,168.43,168.37,26.0]
[1747774527937,20.78137987,168.42,168.37,26.0]
[1747774530267,14.84384277,168.42,168.37,26.0]
[1747774531348,5.93718458,168.43,168.37,26.0]
[1747774532258,16.91124152,168.42,168.37,26.0]
[1747774532550,5.93788967,168.41,168.37,26.0]
[1747774533738,5.93788967,168.41,168.38,3.36285372]
[1747774534427,18.64964886,168.43,168.38,3.36285372]
[1747774534627,32.6368321,168.44,168.38,3.36285372]
[1747774534850,5.9368321,168.44,168.38,3.36285372]
[1747774535125,5.9368321,168.44,168.37,26.0]
[1747774535848,5.9368321,168.44,168.37,30.15741297]
[1747774536064,24.58648096,168.44,168.37,26.0]
[1747774536450,39.42856122,168.44,168.37,26.0]
[1747774536669,18.64964886,168.43,168.37,26.0]
[1747774536833,16.91124152,168.42,168.37,26.0]
[1747774537150,16.91124152,168.41,168.34,30.32]
[1747774537338,26.7,168.4,168.34,56.32]
[1747774537938,5.93859492,168.39,168.34,56.32]
[1747774538146,5.93859492,168.39,168.35,3.36685525]
[1747774538855,26.7,168.4,168.35,3.36685525]
[1747774538856,5.9375371,168.42,168.35,3.36685525]
[1747774539175,5.9375371,168.42,168.37,26.0]
[1747774540052,32.63724676,168.43,168.37,30.15736515]
[1747774540461,32.63724676,168.43,168.38,3.36685525]
[1747774542275,5.93724676,168.43,168.38,3.36685525]
[1747774543078,5.93724676,168.43,168.38,7.52408419]
[1747774543378,14.83478857,168.53,168.41,26.0]
[1747774543563,14.83478857,168.53,168.42,82.96]
[1747774543758,31.74603009,168.53,168.42,82.96]
[1747774543977,5.93436591,168.51,168.44,26.0]
[1747774545282,20.77028069,168.51,168.44,26.0]
[1747774545470,18.64964886,168.48,168.42,26.0]
[1747774545675,16.91124152,168.48,168.42,26.0]
[1747774546182,16.91124152,168.48,168.41,26.0]
[1747774546783,16.91124152,168.49,168.39,1.5731]
[1747774546985,35.56089038,168.5,168.4,26.12]
[1747774547288,35.56089038,168.5,168.42,26.0]
[1747774547470,37.68398767,168.49,168.42,26.0]
[1747774547785,37.68398767,168.49,168.4,0.12]
[1747774547786,35.56089038,168.48,168.4,26.0]
[1747774547958,35.56089038,168.48,168.39,1.5731]
[1747774548154,18.64964886,168.48,168.39,1.5731]
[1747774548385,18.64964886,168.48,168.4,3.3672915]
[1747774549589,5.93577491,168.47,168.41,3.3672915]
[1747774549769,18.64964886,168.46,168.41,3.3672915]
[1747774550867,5.93647966,168.45,168.41,3.3672915]
[1747774551066,5.93647966,168.45,168.4,3.3672915]
[1747774556503,18.64964886,168.43,168.4,3.3672915]
[1747774556699,35.56089038,168.43,168.4,3.3672915]
[1747774557207,18.64964886,168.43,168.4,3.3672915]
[1747774557804,18.64964886,168.43,168.38,3.3672915]
[1747774558715,5.9375371,168.42,168.38,3.3672915]
[1747774565713,5.9368321,168.44,168.38,3.3672915]
[1747774566610,5.93577491,168.47,168.38,7.52453762]
[1747774567607,24.58507146,168.48,168.4,26.0]
[1747774567807,24.58507146,168.48,168.42,26.0]
[1747774568103,18.64964886,168.45,168.39,3.3672915]
[1747774568307,18.64964886,168.45,168.4,26.0]
[1747774568308,18.64964886,168.43,168.4,26.0]
[1747774568883,16.91124152,168.45,168.36,6.6211]
[1747774569095,18.64964886,168.43,168.37,0.12]
[1747774569935,5.9375371,168.42,168.37,0.12]
[1747774570286,26.7,168.44,168.37,0.12]
[1747774570491,26.7,168.44,168.38,3.37653306]
[1747774571342,32.63692576,168.44,168.38,3.37653306]
[1747774571623,32.63692576,168.44,168.39,3.37653306]
[1747774573208,32.63692576,168.44,168.39,7.53353546]
[1747774574421,32.63692576,168.44,168.4,3.37653306]
[1747774575725,32.63692576,168.44,168.39,3.37653306]
[1747774578236,32.63692576,168.44,168.4,3.37653306]
[1747774579644,32.63692576,168.44,168.39,3.37653306]
[1747774580456,32.63692576,168.44,168.39,7.53351868]
[1747774580634,26.0,168.47,168.39,7.53351868]
[1747774580939,24.58556131,168.47,168.4,3.37653306]
[1747774581316,39.42499859,168.47,168.4,3.37653306]
[1747774581737,39.42499859,168.47,168.39,3.37653306]
[1747774582050,56.33624011,168.47,168.39,3.37653306]
[1747774583343,56.33624011,168.47,168.4,3.37653306]
[1747774584044,18.64964886,168.44,168.4,3.37653306]
[1747774584627,18.64964886,168.44,168.37,3.37653306]
[1747774586053,5.93718458,168.43,168.38,3.37653306]
[1747774587049,18.64964886,168.4,168.38,3.37653306]
[1747774587231,16.91124152,168.4,168.38,3.37653306]
[1747774587432,18.64964886,168.41,168.33,3.37653306]
[1747774587625,18.64964886,168.41,168.35,0.12]
[1747774588644,5.93824228,168.4,168.35,0.12]
[1747774589147,5.93824228,168.4,168.36,3.37653306]
[1747774589359,20.78384798,168.4,168.36,3.37653306]
[1747774590062,20.78384798,168.4,168.32,3.37653306]
[1747774590551,5.93824228,168.4,168.32,7.53526078]
[1747774591556,5.93788967,168.41,168.33,3.37653306]
[1747774592450,18.64964886,168.4,168.33,3.37653306]
[1747774592653,18.64964886,168.4,168.34,3.37653306]
[1747774592958,35.56089038,168.4,168.34,3.37653306]
[1747774593759,5.93859492,168.39,168.35,3.37653306]
[1747774594466,5.93859492,168.39,168.33,3.37653306]
[1747774595054,18.64964886,168.38,168.33,3.37653306]
[1747774595263,35.56089038,168.38,168.33,3.37653306]
[1747774595756,5.93930035,168.37,168.33,3.37653306]
[1747774596141,37.69879274,168.37,168.33,3.37653306]
[1747774597268,5.93930035,168.37,168.33,3.37653306]
[1747774597575,5.93930035,168.37,168.31,7.53552117]
[1747774598972,5.93930035,168.37,168.32,3.37653306]
[1747774599776,5.93930035,168.37,168.33,3.37653306]
[1747774600758,5.93930035,168.37,168.32,3.37653306]
[1747774601682,18.64964886,168.36,168.33,3.37653306]
[1747774602553,18.64964886,168.36,168.29,3.37653306]
[1747774602776,18.64964886,168.36,168.3,0.12]
[1747774603256,18.64964886,168.34,168.31,3.37653306]
[1747774603477,5.94071169,168.33,168.31,3.37653306]
[1747774605597,20.79072311,168.35,168.31,3.37653306]
[1747774606607,20.79072311,168.35,168.29,3.37653306]
[1747774607403,37.70196463,168.35,168.29,3.37653306]
[1747774607685,18.64964886,168.34,168.29,3.37653306]
[1747774609176,5.94071169,168.33,168.29,3.37653306]
[1747774609390,5.94071169,168.33,168.28,3.37653306]
[1747774609981,18.64964886,168.36,168.28,3.37653306]
[1747774610356,18.64964886,168.36,168.28,7.5362351]
[1747774611302,20.79002079,168.35,168.28,3.37653306]
[1747774612488,5.93930035,168.37,168.31,26.0]
[1747774613283,5.93930035,168.37,168.32,3.37653306]
[1747774613461,20.7870893,168.38,168.32,3.37653306]
[1747774613665,35.56089038,168.37,168.32,3.37653306]
[1747774613863,16.91124152,168.36,168.32,3.37653306]
[1747774614068,16.91124152,168.35,168.32,3.37653306]
[1747774614291,16.91124152,168.36,168.32,3.37653306]
[1747774614494,18.64964886,168.35,168.3,3.37653306]
[1747774615412,18.64964886,168.33,168.3,3.37653306]
[1747774617510,5.94106463,168.32,168.3,3.37653306]
[1747774618813,5.94106463,168.32,168.28,3.37653306]
[1747774620115,5.94106463,168.32,168.29,26.0]
[1747774621112,5.94106463,168.32,168.28,3.37653306]
[1747774621702,39.44213979,168.33,168.28,3.37653306]
[1747774622310,37.70373245,168.33,168.28,3.37653306]
[1747774622638,18.64964886,168.32,168.28,3.37653306]
[1747774622811,18.64964886,168.32,168.26,3.37653306]
[1747774624011,5.94141762,168.31,168.27,26.0]
[1747774624825,26.72,168.35,168.27,26.0]
[1747774625015,26.72,168.35,168.28,3.37653306]
[1747774625933,5.94035879,168.34,168.28,3.37653306]
[1747774627429,20.79125578,168.34,168.28,3.37653306]
[1747774627930,5.94177064,168.3,168.28,3.37653306]
[1747774628517,5.94177064,168.3,168.26,3.37653306]
[1747774628718,5.94177064,168.3,168.27,0.12]
[1747774628916,5.94177064,168.3,168.26,3.37653306]
[1747774630927,18.64964886,168.33,168.26,3.37653306]
[1747774632134,18.64964886,168.33,168.26,29.37653306]
[1747774633139,20.79372622,168.32,168.26,29.37653306]
[1747774634137,14.85266159,168.32,168.27,26.0]
[1747774634324,18.64964886,168.35,168.27,26.0]
[1747774635036,18.64964886,168.35,168.26,29.37653306]
[1747774635936,20.79125578,168.34,168.26,29.37653306]
[1747774637244,18.64964886,168.33,168.26,29.37653306]
[1747774637428,35.56089038,168.33,168.26,29.37653306]
[1747774638461,20.79372622,168.32,168.26,29.37653306]
[1747774638829,20.79372622,168.32,168.26,3.37653306]
[1747774639225,20.79372622,168.32,168.26,29.37653306]
[1747774639452,20.79372622,168.32,168.26,3.37653306]
[1747774639757,20.79372622,168.32,168.26,29.37653306]
[1747774639956,18.64964886,168.31,168.26,29.37653306]
[1747774640651,20.79619725,168.3,168.26,29.37653306]
[1747774643431,5.94177064,168.3,168.26,29.37653306]
[1747774644955,14.8536287,168.31,168.26,29.37653306]
[1747774646374,18.64964886,168.3,168.26,26.0]
[1747774646970,20.79743299,168.29,168.26,26.0]
[1747774649151,20.79743299,168.29,168.23,27.5239]
[1747774649673,20.79743299,168.29,168.23,1.5239]
[1747774649871,20.79743299,168.29,168.23,27.5239]
[1747774650079,37.70867451,168.29,168.23,26.0]
[1747774650376,35.56089038,168.28,168.2,8.45958665]
[1747774650568,35.56089038,168.28,168.21,0.12]
[1747774650569,18.64964886,168.26,168.21,0.12]
[1747774651084,5.9435364,168.25,168.21,0.12]
[1747774651894,5.9435364,168.25,168.22,3.38816364]
[1747774653193,5.9435364,168.25,168.21,0.12]
[1747774663483,20.80237741,168.25,168.21,0.12]
[1747774664316,5.9435364,168.25,168.21,0.12]
[1747774665407,5.94318316,168.26,168.21,0.12]
[1747774668009,14.85435781,168.31,168.21,30.28141907]
[1747774668010,51.3114195,168.3,168.21,30.28141907]
[1747774668414,51.3114195,168.3,168.22,3.38686892]
[1747774669003,66.16584611,168.3,168.22,3.38686892]
[1747774669395,66.16584611,168.3,168.23,3.38686892]
[1747774670416,83.07708763,168.3,168.22,3.38686892]
[1747774670656,18.64964886,168.28,168.22,3.38686892]
[1747774671223,20.7999049,168.27,168.22,3.38686892]
[1747774671723,18.64964886,168.26,168.22,3.38686892]
[1747774673124,14.85707493,168.27,168.22,3.38686892]
[1747774676456,14.85707493,168.27,168.23,3.38686892]
[1747774678044,14.85707493,168.27,168.22,3.38686892]
[1747774679950,14.85707493,168.27,168.23,3.38686892]
[1747774680451,5.94247682,168.28,168.23,3.38686892]
[1747774680834,5.94141762,168.31,168.24,26.0]
[1747774681038,5.94141762,168.31,168.25,7.5927]
[1747774681447,5.94141762,168.31,168.28,26.0]
[1747774682063,20.79329577,168.33,168.28,26.0]
[1747774682457,20.79329577,168.33,168.29,3.38686892]
[1747774684144,14.85258408,168.33,168.29,3.38686892]
[1747774684459,18.64964886,168.32,168.29,3.38686892]
[1747774685447,18.64964886,168.32,168.26,3.38686892]
[1747774686165,5.94141762,168.31,168.26,3.38686892]
[1747774686966,20.79496167,168.31,168.26,3.38686892]
[1747774687144,18.64964886,168.3,168.26,3.38686892]
[1747774687462,45.36964886,168.3,168.26,3.38686892]
[1747774689363,5.94212371,168.29,168.26,3.38686892]
[1747774692299,5.94141762,168.31,168.26,3.38686892]
[1747774693287,5.94141762,168.31,168.25,3.38686892]
[1747774693498,5.94141762,168.31,168.25,7.54732179]
[1747774694509,18.64964886,168.31,168.26,3.38686892]
[1747774695103,35.56089038,168.31,168.26,3.38686892]
[1747774695796,35.56089038,168.31,168.24,26.0]
[1747774696304,35.56089038,168.31,168.25,3.38612465]
[1747774696305,18.64964886,168.29,168.25,3.38612465]
[1747774696500,5.94177064,168.3,168.25,3.38612465]
[1747774698005,5.94177064,168.3,168.26,3.38612465]
[1747774699185,5.94177064,168.3,168.27,3.38612465]
[1747774700021,5.94177064,168.3,168.25,4.16045768]
[1747774701101,5.94035879,168.34,168.25,4.16045768]
[1747774701279,51.31000765,168.34,168.25,4.16045768]
[1747774701480,51.31000765,168.34,168.26,3.38524955]
[1747774702510,51.31000765,168.34,168.26,7.54546216]
[1747774702714,51.31000765,168.34,168.27,3.38524955]
[1747774703019,5.94035879,168.34,168.27,29.38524955]
[1747774703219,5.94035879,168.34,168.27,35.40224955]
[1747774703685,5.94035879,168.34,168.28,3.38524955]
[1747774706527,18.64964886,168.33,168.28,3.38524955]
[1747774706731,35.56089038,168.33,168.28,3.38524955]
[1747774707126,45.36964886,168.33,168.27,26.0]
[1747774707946,62.28089038,168.33,168.27,26.0]
[1747774708262,18.64964886,168.31,168.27,26.0]
[1747774708607,20.79372622,168.32,168.27,26.0]
[1747774709449,20.79372622,168.32,168.28,3.38688466]
[1747774710126,20.79372622,168.32,168.24,26.0]
[1747774710942,5.94177064,168.3,168.24,26.0]
[1747774711442,5.94177064,168.3,168.25,3.38830688]
[1747774712239,20.79619725,168.3,168.25,3.38830688]
[1747774712558,20.79619725,168.3,168.26,3.38830688]
[1747774713656,20.79619725,168.3,168.27,3.38830688]
[1747774714063,5.94177064,168.3,168.27,3.38830688]
[1747774714940,5.94177064,168.3,168.28,3.38830688]
[1747774715459,24.59071349,168.32,168.28,3.38830688]
[1747774715943,39.44337508,168.32,168.28,3.38830688]
[1747774716737,39.44337508,168.32,168.26,26.0]
[1747774718061,39.44337508,168.32,168.27,3.38760601]
[1747774719259,39.44337508,168.32,168.28,3.38760601]
[1747774720257,39.44337508,168.32,168.27,3.38760601]
[1747774722477,39.44337508,168.32,168.28,3.38760601]
[1747774723774,39.44337508,168.32,168.27,3.38760601]
[1747774724769,39.44337508,168.32,168.28,3.38760601]
[1747774726156,39.44337508,168.32,168.29,3.38760601]
[1747774727168,39.44337508,168.32,168.27,3.38760601]
[1747774728052,39.44337508,168.32,168.26,26.0]
[1747774728053,39.44337508,168.32,168.28,3.38760601]
[1747774729146,39.44337508,168.32,168.27,3.38760601]
[1747774730374,39.44337508,168.32,168.28,3.38760601]
[1747774731773,39.44337508,168.32,168.27,3.38760601]
[1747774733070,66.16337508,168.32,168.28,3.38760601]
[1747774733453,47.51372622,168.32,168.28,3.38760601]
[1747774733976,20.79372622,168.32,168.28,3.38760601]
[1747774734355,20.79372622,168.32,168.29,3.38760601]
[1747774734877,16.91124152,168.3,168.29,3.38760601]
[1747774735077,35.56089038,168.3,168.29,3.38760601]
[1747774735455,56.35708763,168.3,168.18,9.98338665]
[1747774735658,56.35708763,168.3,168.22,0.12]
[1747774736149,86.06594086,168.3,168.22,0.12]
[1747774736356,86.06594086,168.3,168.23,3.38918891]
[1747774737879,18.64964886,168.29,168.24,3.38918891]
[1747774738066,43.63124152,168.28,168.24,3.38918891]
[1747774738879,26.72,168.28,168.2,26.0]
[1747774739081,26.72,168.28,168.21,0.12]
[1747774739578,20.79619725,168.3,168.21,26.12]
[1747774739762,20.79619725,168.3,168.22,7.7948]
[1747774739966,14.85442661,168.3,168.22,7.7948]
[1747774740161,5.94141762,168.31,168.23,3.38406063]
[1747774740376,5.94141762,168.31,168.25,26.0]
[1747774740575,5.94035879,168.34,168.28,7.5572]
[1747774741477,5.94035879,168.34,168.29,3.38406063]
[1747774741681,20.78960539,168.36,168.29,3.38406063]